fUSD/lending_fUSD_20240630
["ID","MTS","AMOUNT","RATE_DAILY","PERIOD"]
[330721427,1719735971934,-1167.3,0.00038356,120]
[330721428,1719735971957,-1167.3,0.00038356,120]
[330721429,1719735971981,-1167.3,0.00038356,120]
[330721430,1719735972003,-1167.3,0.00038356,120]
[330721431,1719735972025,-1167.3,0.00038356,120]
[330721432,1719735972047,-1167.3,0.00038356,120]
[330721433,1719735972070,-1167.3,0.00038356,120]
[330721434,1719735972093,-1167.48,0.00038356,120]
[330721435,1719735972115,-2166.04,0.00038356,14]
[330721436,1719735972137,-273.68307285,0.00038356,60]
[330721437,1719735972160,-435.82930176,0.00038356,30]
[330721438,1719735972183,-300.0,0.000385,70]
[330721439,1719735972207,-435.82930176,0.00038521,30]
[330721440,1719735972235,-435.82930176,0.00038685,30]
[330721441,1719735972259,-612.49621858,0.000387,120]
[330721442,1719735972284,-48791.55622671,0.000388,45]
[330721443,1719735972313,-435.82930176,0.00038849,30]
[330721444,1719735972338,-799.72373263,0.000389,30]
[330721445,1719735972363,-50000.0,0.00039,29]
[330721446,1719735972387,-1007.5521338,0.00039,20]
[330721447,1719735972410,-450.0,0.00039,75]
[330721448,1719735972431,-1474.42306422,0.00039,120]
[330721449,1719735972453,-169.21754908,0.00039,30]
[330721450,1719735972474,-1160.84634179,0.00039,120]
[330721451,1719735972499,-389.00256324,0.00039,15]
[330721452,1719735972522,-150.00824154,0.00039,120]
[330721453,1719735972544,-435.82930176,0.00039014,30]
[330721454,1719735972567,-2166.04,0.00039178,16]
[330721455,1719735972591,-435.82930176,0.00039178,30]
[330721456,1719735972615,-435.82930176,0.00039315,30]
[330721457,1719735972639,-435.82930176,0.00039479,30]
[330721458,1719735972662,-500.0,0.000395,80]
[330721459,1719735972686,-376.75483352,0.000395,30]
[330721460,1719735972710,-435.82930176,0.00039644,30]
[330721461,1719735972732,-569.99356524,0.000397,60]
[330721462,1719735972754,-999.97,0.00039726,90]
[330721463,1719735972777,-3520.96901439,0.000398,60]
[330721464,1719735972800,-435.82930176,0.00039808,30]
[330721465,1719735972821,-189.17693566,0.0003988,120]
[330721466,1719735972845,-550.00000104,0.00039894,36]
[330721467,1719735972867,-435.82930176,0.00039973,30]
[330721468,1719735972890,-250.01062479,0.00039999,30]
[330721469,1719735972913,-50000.0,0.0004,30]
[330721470,1719735972936,-707.86,0.0004,10]
[330721471,1719735972959,-151.0,0.0004,120]
[330721472,1719735972983,-172.31111111,0.0004,120]
[330721473,1719735973005,-794.0,0.0004,95]
[330721474,1719735973027,-477.12749073,0.0004,30]
[330721475,1719735973049,-414.66377159,0.0004,120]
[330721476,1719735973072,-954.08367021,0.0004,120]
[330721477,1719735973094,-456.94621431,0.0004,30]
[330721478,1719735973116,-1000.0,0.0004,20]
[330721479,1719735973139,-715.54705396,0.0004,30]
[330721480,1719735973160,-1092.30687484,0.0004,60]
[330721481,1719735973181,-241.56407248,0.0004,30]
[330721482,1719735973203,-441.73600958,0.0004,120]
[330721483,1719735973230,-1000.68698781,0.0004,30]
[330721484,1719735973252,-1000.0,0.0004,120]
[330721485,1719735973275,-2009.01385842,0.0004,120]
[330721486,1719735973298,-1169.80399764,0.0004,120]
[330721487,1719735973319,-6132.37535666,0.0004,30]
[330721488,1719735973340,-1092.714872,0.0004,30]
[330721489,1719735973362,-280.18,0.0004,30]
[330721490,1719735973384,-850.0,0.0004,120]
[330721491,1719735973405,-278.22427752,0.0004,60]
[330721492,1719735973566,-352.0,0.0004,30]
[330721493,1719735973591,-5000.0,0.0004,60]
[330721494,1719735973614,-6542.34968111,0.0004,30]
[330721495,1719735973638,-9136.30885448,0.0004,30]
[330721496,1719735973661,-622.9,0.0004,120]
[330721497,1719735973683,-367.4,0.0004,120]
[330721498,1719735973704,-3277.94414099,0.0004,10]
[330721499,1719735973726,-2166.04,0.0004,18]
[330721500,1719735973750,-435.82930176,0.00040137,30]
[330721501,1719735973771,-363.94174724,0.0004025,120]
[330721502,1719735973793,-999.97,0.00040273,92]
[330721503,1719735973815,-435.82930176,0.00040301,30]
[330721504,1719735973838,-435.82930176,0.00040466,30]
[330721505,1719735973861,-750.0,0.000405,95]
[330721506,1719735973883,-2099.22935266,0.00040537,12]
[330721507,1719735973904,-435.82930176,0.0004063,30]
[330721508,1719735973928,-2286.0,0.000407,81]
[330721509,1719735973952,-172.31111111,0.00040712,120]
[330721510,1719735973975,-177.51087967,0.00040714,14]
[330721511,1719735974002,-270.550207,0.000408,30]
[330721512,1719735974026,-999.97,0.00040821,94]
[330721513,1719735974048,-2166.04,0.00040821,20]
[330721514,1719735974070,-150.2374603,0.000409,120]
[330721515,1719735974092,-150.2374603,0.000409,120]
[330721516,1719735974115,-150.2374603,0.000409,120]
[330721517,1719735974139,-150.2374603,0.000409,120]
[330721518,1719735974162,-50000.0,0.00041,31]
[330721519,1719735974184,-900.0,0.00041,100]
[330721520,1719735974206,-459.08995768,0.00041,60]
[330721521,1719735974233,-1139.11822258,0.00041,30]
[330721522,1719735974256,-1000.0,0.00041,120]
[330721523,1719735974281,-757.13,0.00041,120]
[330721524,1719735974306,-3943.52318024,0.00041,120]
[330721525,1719735974329,-2474.61320542,0.00041,30]
[330721526,1719735974353,-152.0,0.00041041,31]
[330721527,1719735974377,-1008.81951176,0.00041095,120]
[330721528,1719735974399,-510.0,0.00041095,120]
[330721529,1719735974423,-559.21,0.00041095,20]
[330721530,1719735974445,-559.21,0.00041095,20]
[330721531,1719735974468,-559.21,0.00041095,20]
[330721532,1719735974489,-559.21,0.00041095,20]
[330721533,1719735974512,-559.21,0.00041095,20]
[330721534,1719735974535,-559.21,0.00041095,20]
[330721535,1719735974557,-559.21,0.00041095,20]
[330721536,1719735974579,-559.21,0.00041095,20]
[330721537,1719735974602,-559.21,0.00041095,20]
[330721538,1719735974624,-559.21,0.00041095,20]
[330721539,1719735974646,-559.21,0.00041095,20]
[330721540,1719735974669,-559.21,0.00041095,20]
[330721541,1719735974691,-559.21,0.00041095,20]
[330721542,1719735974714,-559.21,0.00041095,20]
[330721543,1719735974737,-559.21,0.00041095,20]
[330721544,1719735974760,-559.21,0.00041095,20]
[330721545,1719735974782,-559.21,0.00041095,20]
[330721546,1719735974807,-559.21,0.00041095,20]
[330721547,1719735974830,-559.21,0.00041095,20]
[330721548,1719735974853,-559.21,0.00041095,20]
[330721549,1719735974875,-559.21,0.00041095,20]
[330721550,1719735974897,-559.21,0.00041095,20]
[330721551,1719735974920,-559.21,0.00041095,20]
[330721552,1719735974944,-559.26805307,0.00041095,20]
[330721553,1719735974966,-1000.0,0.00041096,30]
[330721554,1719735974988,-151.0,0.00041123,120]
[330721555,1719735975010,-1000.0,0.00041147,30]
[330721556,1719735975033,-1000.0,0.00041197,30]
[330721557,1719735975057,-1000.0,0.00041248,30]
[330721558,1719735975081,-1000.0,0.00041299,30]
[330721559,1719735975104,-1000.0,0.0004135,30]
[330721560,1719735975128,-510.0,0.00041369,120]
[330721561,1719735975150,-999.97,0.00041369,96]
[330721562,1719735975172,-1000.0,0.000414,30]
[330721563,1719735975194,-172.31111111,0.00041425,120]
[330721564,1719735975220,-1000.0,0.00041451,30]
[330721565,1719735975243,-1200.0,0.000415,115]
[330721566,1719735975266,-1000.0,0.00041502,30]
[330721567,1719735975288,-1000.0,0.00041553,30]
[330721568,1719735975310,-1000.0,0.00041603,30]
[330721569,1719735975333,-510.0,0.00041643,120]
[330721570,1719735975355,-2166.04,0.00041643,22]
[330721571,1719735975377,-1000.0,0.00041654,30]
[330721572,1719735975399,-1000.0,0.00041705,30]
[330721573,1719735975420,-1000.0,0.00041755,30]
[330721574,1719735975446,-305.92463485,0.000418,120]
[330721575,1719735975471,-1000.0,0.00041806,30]
[330721576,1719735975495,-1000.0,0.00041857,30]
[330721577,1719735975517,-1000.0,0.00041908,30]
[330721578,1719735975539,-510.0,0.00041917,120]
[330721579,1719735975564,-999.97,0.00041917,98]
[330721580,1719735975588,-1000.0,0.00041958,30]
[330721581,1719735975613,-50000.0,0.00042,32]
[330721582,1719735975636,-1500.0,0.00042,110]
[330721583,1719735975659,-397.23952625,0.00042,120]
[330721584,1719735975683,-986.40642692,0.00042,120]
[330721585,1719735975707,-1315.0794896,0.00042,120]
[330721586,1719735975731,-1000.0,0.00042,120]
[330721587,1719735975752,-2000.0,0.00042,14]
[330721588,1719735975775,-500.0,0.00042,120]
[330721589,1719735975798,-1000.0,0.00042009,30]
[330721590,1719735975820,-1000.0,0.0004206,30]
[330721591,1719735975842,-500.0,0.0004208,120]
[330721592,1719735975863,-1000.0,0.00042111,30]
[330721593,1719735975886,-172.31111111,0.00042137,120]
[330721594,1719735975909,-1000.0,0.00042161,30]
[330721595,1719735975934,-233.91773949,0.00042191,120]
[330721596,1719735975957,-1000.0,0.00042212,30]
[330721597,1719735975979,-151.0,0.00042247,120]
[330721598,1719735976003,-1000.0,0.00042263,30]
[330721599,1719735976026,-1000.0,0.00042314,30]
[330721600,1719735976048,-1000.0,0.00042364,30]
[330721601,1719735976071,-1000.0,0.00042415,30]
[330721602,1719735976093,-999.97,0.00042465,100]
[330721603,1719735976116,-2166.04,0.00042465,24]
[330721604,1719735976138,-1000.0,0.00042466,30]
[330721605,1719735976162,-510.11452991,0.00042497,120]
[330721606,1719735976184,-1463.68,0.000425,120]
[330721607,1719735976208,-344.85,0.000425,120]
[330721608,1719735976237,-1000.0,0.00042516,30]
[330721609,1719735976262,-1000.0,0.00042567,30]
[330721610,1719735976284,-2000.0,0.00042585,30]
[330721611,1719735976307,-1000.0,0.00042618,30]
[330721612,1719735976328,-1000.0,0.00042669,30]
[330721613,1719735976352,-1000.0,0.00042719,30]
[330721614,1719735976373,-1000.0,0.0004277,30]
[330721615,1719735976396,-1127542.06167387,0.000428,60]
[330721616,1719735976420,-1000.0,0.00042821,30]
[330721617,1719735976443,-172.31111111,0.00042849,120]
[330721618,1719735976465,-1000.0,0.00042872,30]
[330721619,1719735976487,-226.27227377,0.0004288,120]
[330721620,1719735976510,-1197.18012387,0.000429,120]
[330721621,1719735976532,-1000.0,0.00042922,30]
[330721622,1719735976554,-1000.0,0.00042973,30]
[330721623,1719735976579,-50000.0,0.00043,33]
[330721624,1719735976602,-771.09419474,0.00043,120]
[330721625,1719735976624,-151.0,0.00043,30]
[330721626,1719735976649,-151.0,0.00043,30]
[330721627,1719735976676,-151.0,0.00043,30]
[330721628,1719735976703,-151.0,0.00043,30]
[330721629,1719735976729,-151.0,0.00043,30]
[330721630,1719735976760,-151.0,0.00043,30]
[330721631,1719735976785,-197.0,0.00043,30]
[330721632,1719735976810,-1298.19313381,0.00043,30]
[330721633,1719735976837,-1615.81664748,0.00043,14]
[330721634,1719735976863,-5880.0,0.00043,120]
[330721635,1719735976891,-525.87079501,0.00043,30]
[330721636,1719735976917,-1960.42033866,0.00043,30]
[330721637,1719735976945,-2000.0,0.00043,14]
[330721638,1719735976971,-582.0,0.00043,120]
[330721639,1719735977001,-19806.79015947,0.00043,30]
[330721640,1719735977030,-5000.0,0.00043,10]
[330721641,1719735977056,-763.45882846,0.00043,120]
[330721642,1719735977083,-6157.30066953,0.00043,60]
[330721643,1719735977110,-424.993,0.00043,120]
[330721644,1719735977137,-6695.0,0.00043,30]
[330721645,1719735977162,-999.97,0.00043013,102]
[330721646,1719735977188,-1000.0,0.00043024,30]
[330721647,1719735977216,-1000.0,0.00043075,30]
[330721648,1719735977249,-670.6039592,0.00043098,120]
[330721649,1719735977275,-1000.0,0.00043125,30]
[330721650,1719735977302,-1000.0,0.00043176,30]
[330721651,1719735977326,-500.0,0.000432,12]
[330721652,1719735977349,-500.0,0.000432,12]
[330721653,1719735977374,-172.643301,0.000432,12]
[330721654,1719735977399,-1000.0,0.00043227,30]
[330721655,1719735977425,-50000.0,0.00043245,120]
[330721656,1719735977450,-1000.0,0.00043278,30]
[330721657,1719735977476,-2166.04,0.00043287,26]
[330721658,1719735977504,-1000.0,0.00043328,30]
[330721659,1719735977530,-151.0,0.0004337,120]
[330721660,1719735977555,-1000.0,0.00043379,30]
[330721661,1719735977581,-1000.0,0.0004343,30]
[330721662,1719735977607,-1000.0,0.0004348,30]
[330721663,1719735977631,-1000.0,0.00043531,30]
[330721664,1719735977655,-999.97,0.00043561,104]
[330721665,1719735977678,-172.31111111,0.00043562,120]
[330721666,1719735977703,-2000.0,0.00043578,30]
[330721667,1719735977728,-6275.95485519,0.0004358,30]
[330721668,1719735977756,-1000.0,0.00043582,30]
[330721669,1719735977781,-225.999999,0.000436,30]
[330721670,1719735977809,-1000.0,0.00043633,30]
[330721671,1719735977834,-1000.0,0.00043683,30]
[330721672,1719735977857,-196.49910302,0.000437,120]
[330721673,1719735977882,-1000.0,0.00043734,30]
[330721674,1719735977907,-612.99743836,0.00043748,120]
[330721675,1719735977933,-1000.0,0.00043785,30]
[330721676,1719735977959,-464.773723,0.000438,30]
[330721677,1719735977983,-534.6314077,0.000438,111]
[330721678,1719735978006,-749.1386531,0.000438,120]
[330721679,1719735978031,-10742.23,0.00043835,120]
[330721680,1719735978055,-10742.23,0.00043835,120]
[330721681,1719735978083,-10742.23,0.00043835,120]
[330721682,1719735978108,-10742.23,0.00043835,120]
[330721683,1719735978132,-10742.23,0.00043835,120]
[330721684,1719735978157,-10742.23,0.00043835,120]
[330721685,1719735978182,-10742.23,0.00043835,120]
[330721686,1719735978205,-10742.23,0.00043835,120]
[330721687,1719735978653,-10742.23,0.00043835,120]
[330721688,1719735978686,-10742.23,0.00043835,120]
[330721689,1719735978710,-10742.23,0.00043835,120]
[330721690,1719735978736,-500.0,0.00043835,120]
[330721691,1719735978760,-500.0,0.00043835,120]
[330721692,1719735978782,-500.0,0.00043835,120]
[330721693,1719735978805,-500.0,0.00043835,120]
[330721694,1719735978827,-500.0,0.00043835,120]
[330721695,1719735978850,-509.91786409,0.00043835,120]
[330721696,1719735978874,-519.5,0.00043835,120]
[330721697,1719735978897,-519.5,0.00043835,120]
[330721698,1719735978920,-519.5,0.00043835,120]
[330721699,1719735978946,-519.5,0.00043835,120]
[330721700,1719735978971,-519.5,0.00043835,120]
[330721701,1719735978994,-519.5,0.00043835,120]
[330721702,1719735979018,-519.5,0.00043835,120]
[330721703,1719735979040,-519.5,0.00043835,120]
[330721704,1719735979064,-519.5,0.00043835,120]
[330721705,1719735979088,-519.5,0.00043835,120]
[330721706,1719735979111,-519.5,0.00043835,120]
[330721707,1719735979135,-519.5,0.00043835,120]
[330721708,1719735979158,-519.5,0.00043835,120]
[330721709,1719735979181,-519.5,0.00043835,120]
[330721710,1719735979204,-519.5,0.00043835,120]
[330721711,1719735979229,-519.5,0.00043835,120]
[330721712,1719735979254,-519.5,0.00043835,120]
[330721713,1719735979278,-519.5,0.00043835,120]
[330721714,1719735979302,-519.5,0.00043835,120]
[330721715,1719735979326,-519.5,0.00043835,120]
[330721716,1719735979349,-519.5,0.00043835,120]
[330721717,1719735979372,-519.5,0.00043835,120]
[330721718,1719735979394,-519.5,0.00043835,120]
[330721719,1719735979418,-519.7313561,0.00043835,120]
[330721720,1719735979442,-1129.77915276,0.00043836,30]
[330721721,1719735979464,-500.0,0.00043836,14]
[330721722,1719735979490,-600.00000002,0.0004389,20]
[330721723,1719735979512,-972.68579926,0.000439,120]
[330721724,1719735979534,-115891.79206331,0.000439,120]
[330721725,1719735979557,-1047.8739,0.00043987,10]
[330721726,1719735979583,-50000.0,0.00044,34]
[330721727,1719735979607,-1701.0,0.00044,120]
[330721728,1719735979629,-500.0,0.00044,120]
[330721729,1719735979653,-187.50315675,0.00044,30]
[330721730,1719735979677,-310.0,0.00044,120]
[330721731,1719735979700,-1050.0,0.00044,120]
[330721732,1719735979724,-1000.0,0.00044,120]
[330721733,1719735979749,-2000.0,0.00044,14]
[330721734,1719735979774,-883.849,0.00044,120]
[330721735,1719735979798,-460000.0,0.00044,120]
[330721736,1719735979822,-10672.909493,0.00044,30]
[330721737,1719735979845,-9658.78546482,0.00044,30]
[330721738,1719735979870,-679.995395,0.00044,57]
[330721739,1719735979893,-160.08275807,0.000441,120]
[330721740,1719735979919,-458.22,0.00044109,106]
[330721741,1719735979943,-2166.04,0.00044109,120]
[330721742,1719735979967,-5010.15476,0.0004416,30]
[330721743,1719735979990,-1197.28744788,0.000442,120]
[330721744,1719735980013,-1197.28744785,0.000442,120]
[330721745,1719735980038,-1197.28744785,0.000442,120]
[330721747,1719735980061,-1197.28744785,0.000442,120]
[330721748,1719735980084,-1197.28744785,0.000442,120]
[330721749,1719735980107,-2099.22935266,0.00044246,16]
[330721750,1719735980132,-85175.2568358,0.0004426,45]
[330721751,1719735980156,-172.31111111,0.00044274,120]
[330721752,1719735980179,-179.77,0.0004438,120]
[330721753,1719735980203,-179.64829865,0.0004438,120]
[330721754,1719735980232,-179.64829865,0.0004438,120]
[330721755,1719735980263,-179.64829865,0.0004438,120]
[330721756,1719735980288,-180.14,0.0004438,120]
[330721757,1719735980312,-218.7380906,0.0004438,120]
[330721758,1719735980361,-218.7380906,0.0004438,120]
[330721759,1719735980384,-218.7380906,0.0004438,120]
[330721760,1719735980407,-218.7380906,0.0004438,120]
[330721761,1719735980430,-218.7380906,0.0004438,120]
[330721762,1719735980453,-218.7380906,0.0004438,120]
[330721763,1719735980475,-218.7380906,0.0004438,120]
[330721764,1719735980500,-218.7380906,0.0004438,120]
[330721765,1719735980522,-218.7380906,0.0004438,120]
[330721766,1719735980546,-218.7380906,0.0004438,120]
[330721767,1719735980568,-218.7380906,0.0004438,120]
[330721768,1719735980593,-218.7380906,0.0004438,120]
[330721769,1719735980616,-218.7380906,0.0004438,120]
[330721770,1719735980639,-218.7380906,0.0004438,120]
[330721771,1719735980661,-218.7380906,0.0004438,120]
[330721772,1719735980684,-218.7380906,0.0004438,120]
[330721773,1719735980706,-218.7380906,0.0004438,120]
[330721774,1719735980730,-218.7380906,0.0004438,120]
[330721775,1719735980755,-218.7380906,0.0004438,120]
[330721776,1719735980778,-219.23,0.0004438,120]
[330721777,1719735980801,-875.02736239,0.0004438,120]
[330721778,1719735980823,-875.02736239,0.0004438,120]
[330721779,1719735980845,-875.02736239,0.0004438,120]
[330721780,1719735980868,-875.02736239,0.0004438,120]
[330721781,1719735980890,-875.02736239,0.0004438,120]
[330721782,1719735980913,-875.02736239,0.0004438,120]
[330721783,1719735980938,-875.02736239,0.0004438,120]
[330721784,1719735980962,-875.02736239,0.0004438,120]
[330721785,1719735980986,-875.02736239,0.0004438,120]
[330721786,1719735981008,-875.02736239,0.0004438,120]
[330721787,1719735981031,-875.02736239,0.0004438,120]
[330721788,1719735981055,-875.02736239,0.0004438,120]
[330721789,1719735981079,-875.02736239,0.0004438,120]
[330721790,1719735981102,-875.02736239,0.0004438,120]
[330721791,1719735981124,-875.02736239,0.0004438,120]
[330721792,1719735981146,-875.02736239,0.0004438,120]
[330721793,1719735981168,-875.02736239,0.0004438,120]
[330721794,1719735981191,-875.02736239,0.0004438,120]
[330721795,1719735981214,-875.02736239,0.0004438,120]
[330721796,1719735981241,-875.52,0.0004438,120]
[330721797,1719735981263,-182.86795883,0.0004438,120]
[330721798,1719735981286,-182.86795883,0.0004438,120]
[330721799,1719735981309,-182.86795883,0.0004438,120]
[330721800,1719735981334,-182.86795883,0.0004438,120]
[330721801,1719735981358,-182.86795883,0.0004438,120]
[330721802,1719735981380,-182.86795883,0.0004438,120]
[330721803,1719735981402,-182.86795883,0.0004438,120]
[330721804,1719735981424,-182.86795883,0.0004438,120]
[330721805,1719735981448,-182.86795883,0.0004438,120]
[330721806,1719735981470,-182.86795883,0.0004438,120]
[330721807,1719735981494,-182.86795883,0.0004438,120]
[330721808,1719735981516,-182.86795883,0.0004438,120]
[330721809,1719735981539,-182.86795883,0.0004438,120]
[330721810,1719735981563,-182.86795883,0.0004438,120]
[330721811,1719735981586,-182.86795883,0.0004438,120]
[330721812,1719735981608,-182.86795883,0.0004438,120]
[330721813,1719735981630,-182.86795883,0.0004438,120]
[330721814,1719735981652,-182.86795883,0.0004438,120]
[330721815,1719735981675,-182.86795883,0.0004438,120]
[330721816,1719735981698,-183.36,0.0004438,120]
[330721817,1719735981720,-731.54683532,0.0004438,120]
[330721818,1719735981744,-731.54683532,0.0004438,120]
[330721819,1719735981767,-731.54683532,0.0004438,120]
[330721820,1719735981790,-731.54683532,0.0004438,120]
[330721821,1719735981815,-731.54683532,0.0004438,120]
[330721822,1719735981838,-731.54683532,0.0004438,120]
[330721823,1719735981861,-731.54683532,0.0004438,120]
[330721824,1719735981884,-731.54683532,0.0004438,120]
[330721825,1719735981907,-731.54683532,0.0004438,120]
[330721826,1719735981931,-731.54683532,0.0004438,120]
[330721827,1719735981955,-731.54683532,0.0004438,120]
[330721828,1719735981976,-731.54683532,0.0004438,120]
[330721829,1719735981999,-731.54683532,0.0004438,120]
[330721830,1719735982021,-731.54683532,0.0004438,120]
[330721831,1719735982043,-731.54683532,0.0004438,120]
[330721832,1719735982065,-731.54683532,0.0004438,120]
[330721833,1719735982086,-731.54683532,0.0004438,120]
[330721834,1719735982109,-731.54683532,0.0004438,120]
[330721835,1719735982133,-731.54683532,0.0004438,120]
[330721836,1719735982156,-732.04,0.0004438,120]
[330721837,1719735982180,-245.59469795,0.0004438,120]
[330721838,1719735982203,-245.59469795,0.0004438,120]
[330721839,1719735982230,-245.59469795,0.0004438,120]
[330721840,1719735982255,-245.59469795,0.0004438,120]
[330721841,1719735982280,-245.59469795,0.0004438,120]
[330721842,1719735982304,-245.59469795,0.0004438,120]
[330721843,1719735982327,-245.59469795,0.0004438,120]
[330721844,1719735982350,-245.59469795,0.0004438,120]
[330721845,1719735982374,-245.59469795,0.0004438,120]
[330721846,1719735982397,-245.59469795,0.0004438,120]
[330721847,1719735982420,-245.59469795,0.0004438,120]
[330721848,1719735982444,-245.59469795,0.0004438,120]
[330721849,1719735982467,-245.59469795,0.0004438,120]
[330721850,1719735982490,-245.59469795,0.0004438,120]
[330721851,1719735982513,-245.59469795,0.0004438,120]
[330721852,1719735982535,-245.59469795,0.0004438,120]
[330721853,1719735982558,-245.59469795,0.0004438,120]
[330721854,1719735982580,-245.59469795,0.0004438,120]
[330721855,1719735982603,-245.59469795,0.0004438,120]
[330721856,1719735982626,-246.09,0.0004438,120]
[330721857,1719735982649,-982.4537918,0.0004438,120]
[330721858,1719735982674,-982.4537918,0.0004438,120]
[330721859,1719735982698,-982.4537918,0.0004438,120]
[330721860,1719735982722,-982.4537918,0.0004438,120]
[330721861,1719735982746,-982.4537918,0.0004438,120]
[330721862,1719735982770,-982.4537918,0.0004438,120]
[330721863,1719735982887,-982.4537918,0.0004438,120]
[330721864,1719735982916,-982.4537918,0.0004438,120]
[330721865,1719735982941,-982.4537918,0.0004438,120]
[330721866,1719735982967,-982.4537918,0.0004438,120]
[330721867,1719735982991,-982.4537918,0.0004438,120]
[330721868,1719735983015,-982.4537918,0.0004438,120]
[330721869,1719735983040,-982.4537918,0.0004438,120]
[330721870,1719735983064,-982.4537918,0.0004438,120]
[330721871,1719735983090,-982.4537918,0.0004438,120]
[330721872,1719735983114,-982.4537918,0.0004438,120]
[330721873,1719735983139,-982.4537918,0.0004438,120]
[330721874,1719735983162,-982.4537918,0.0004438,120]
[330721875,1719735983185,-982.4537918,0.0004438,120]
[330721876,1719735983209,-982.95,0.0004438,120]
[330721877,1719735983238,-1492.59,0.00044384,120]
[330721878,1719735983263,-319.91,0.00044384,120]
[330721879,1719735983290,-6650.76015819,0.000444,120]
[330721880,1719735983314,-151.0,0.00044493,120]
[330721881,1719735983340,-589.44853787,0.0004474,120]
[330721882,1719735983364,-1298.9,0.000448,60]
[330721883,1719735983387,-699.57673472,0.0004486,120]
[330721884,1719735983411,-1000.0,0.00044875,30]
[330721885,1719735983434,-1153.53905565,0.000449,33]
[330721886,1719735983456,-2009.0,0.000449,30]
[330721887,1719735983478,-2166.04,0.00044931,120]
[330721888,1719735983506,-172.31111111,0.00044986,120]
[330721889,1719735983528,-1000.0,0.00044998,60]
[330721890,1719735983551,-50000.0,0.00045,35]
[330721891,1719735983574,-200.62165904,0.00045,120]
[330721892,1719735983597,-150.0,0.00045,85]
[330721893,1719735983620,-202.0,0.00045,30]
[330721894,1719735983643,-500000.0,0.00045,120]
[330721895,1719735983666,-1446.20611184,0.00045,90]
[330721896,1719735983689,-929.44121271,0.00045,45]
[330721897,1719735983712,-333.86122784,0.00045,30]
[330721898,1719735983735,-214.60694666,0.00045,35]
[330721899,1719735983758,-1251.97122689,0.00045,120]
[330721900,1719735983782,-1193.37,0.00045,120]
[330721901,1719735983805,-1000.0,0.00045,30]
[330721902,1719735983829,-200.0,0.00045,120]
[330721903,1719735983853,-200.0,0.00045,120]
[330721904,1719735983877,-200.0,0.00045,120]
[330721905,1719735983900,-2951.66558039,0.00045,30]
[330721906,1719735983922,-2039.79636669,0.00045,30]
[330721907,1719735983946,-1870.4821393,0.00045,120]
[330721908,1719735983969,-2000.0,0.00045,14]
[330721909,1719735983993,-510.81602048,0.00045,30]
[330721910,1719735984016,-4056.82153063,0.00045,120]
[330721911,1719735984038,-1535.7346701,0.00045,45]
[330721912,1719735984061,-3177.38,0.00045,120]
[330721913,1719735984084,-5333.75,0.00045,120]
[330721914,1719735984106,-530.30196256,0.00045,120]
[330721915,1719735984130,-355.50250475,0.00045,120]
[330721916,1719735984152,-905.99998,0.00045,120]
[330721917,1719735984175,-37312.95447536,0.00045,30]
[330721918,1719735984198,-28766.59490616,0.00045,30]
[330721919,1719735984224,-220399.72940315,0.00045,30]
[330721920,1719735984246,-273.76012689,0.000451,120]
[330721921,1719735984270,-398.4083324,0.000451,120]
[330721922,1719735984293,-140157.0614,0.0004514,30]
[330721923,1719735984318,-500000.0,0.0004525,120]
[330721924,1719735984342,-399.46909121,0.000455,90]
[330721925,1719735984365,-500000.0,0.000455,120]
[330721926,1719735984388,-151.0,0.00045616,120]
[330721927,1719735984412,-152.0,0.00045626,31]